[Event "RUDAR XXII-IM 2024"]
[Site "Pozarevac"]
[Date "2024.02.12"]
[Round "1.1"]
[White "Karamsetty, Jeevan"]
[Black "Ilincic, Zlatko"]
[Result "1-0"]
[ECO "C47"]
[WhiteElo "2211"]
[BlackElo "2291"]
[Annotator "TA"]
[PlyCount "47"]
[EventDate "2024.02.12"]
[EventType "tourn"]
[EventCountry "SRB"]
[SourceTitle "playchess.com"]
[Source "ChessBase"]
[SourceQuality "1"]
[TimeControl "5400+30"]

{[%evp 9,47,17,13,10,9,10,17,15,17,0,0,7,0,-10,26,35,36,37,31,25,34,42,114,109,112,65,74,64,134,121,127,139,122,95,160,156,162,163,685,681]} 1. e4 {[%emt 0:00:04]} e5 {[%emt 0:00:34]} 2. Nf3 {[%emt 0:00:07]} Nc6 {[%emt 0:00:22]} 3. Nc3 {[%emt 0:00:20]} Nf6 {[%emt 0:00:35]} 4. a4 {[%emt 0:00:06]} Bc5 {[%emt 0:00:28]} 5. Nxe5 {[%emt 0:00:31]} Nxe5 {[%emt 0:02:12]} 6. d4 {[%emt 0:00:08]} Bd6 {[%emt 0:00:18]} 7. dxe5 {[%emt 0:00:07]} Bxe5 {[%emt 0:00:05]} 8. Bd3 {[%emt 0:00:09] The position is equal.} d6 {[%emt 0:09:54]} 9. h3 {[%emt 0:13:12]} O-O {[%emt 0:07:00]} 10. O-O {[%emt 0:01:01]} Re8 {[%emt 0:04:48]} 11. Re1 {[%emt 0:06:17]} Bd7 {[%emt 0:04:45]} 12. Ne2 {[%emt 0:09:09] Strongly threatening f4.} d5 {[%emt 0:07:21]} 13. exd5 {[%emt 0:02:33]} Nxd5 {[%emt 0:08:26] [#]} 14. Bxh7+ $1 {[%emt 0:01:47]} Kxh7 {[%emt 0:00:10]} 15. Qxd5 {[%emt 0:00:05]} Bf5 {[%emt 0:05:06]} (15... Kg8 $14) 16. Qxf7 $16 {[%emt 0:06:16]} Bxc2 {[%emt 0:00:13]} 17. Qh5+ {[%emt 0:13:50]} Kg8 {[%emt 0:02:48]} 18. Be3 {[%emt 0:05:18]} g6 {[%emt 0:08:35]} (18... Bxb2 19. Ra2 Rxe3 20. Rxb2 $16 (20. fxe3 Qd2 $16)) (18... Qd6 $14) 19. Qg4 {[%emt 0:02:28]} Qd5 {[%emt 0:04:55] Prevents Qc4} 20. Nd4 $36 {[%emt 0:06:22][%mdl 2048] White has strong initiative.} Bd3 {[%emt 0:03:47]} 21. Qd1 {[%emt 0:11:46]} Ba6 {[%emt 0:05:47]} ({Black should try} 21... Be4) 22. Qc2 {[%emt 0:01:57]} Bxd4 {[%emt 0:03:21]} 23. Rad1 {[%emt 0:02:55]} (23. Qxc7 Be5 (23... Bxb2 $2 24. Rad1 $19) 24. Qc2 Qf7 $19) (23. Bxd4 Qxd4 (23... Rxe1+ 24. Rxe1 Qxd4 25. Qxg6+ Qg7 26. Qxg7+ Kxg7 27. Re7+ Kg8 28. Rxc7 $11) 24. Qxg6+ (24. Qxc7 $2 Qxb2 25. Qd6 Qg7 $19) 24... Kf8 $11) 23... Re4 $2 {[%emt 0:03:03] [#]} (23... Qe4 24. Qb3+ (24. Qxc7 $2 {loses.} Bxb2 25. Qg3 Bc4 $19) 24... Qe6 25. Qxe6+ Rxe6) 24. Rxd4 {[%emt 0:00:49] Weighted Error Value: White=0.10 (very precise) /Black=0.56.  Mistake:       	---       	Black=4      Inaccurate:     	White=1     	Black=1      OK:         	White=9     	Black=6      Best:        	White=2     	Black=2} (24. Qxc7 $2 {too greedy.} Rae8 25. Qg3 Qe6 $19) 1-0

[Event "RUDAR XXII-IM 2024"]
[Site "Pozarevac"]
[Date "2024.02.12"]
[Round "1.2"]
[White "Sri Sai Baswanth P"]
[Black "Popchev, Milko"]
[Result "1/2-1/2"]
[ECO "C41"]
[WhiteElo "2096"]
[BlackElo "2193"]
[Annotator "RC"]
[PlyCount "160"]
[EventDate "2024.02.12"]
[EventType "tourn"]
[EventCountry "SRB"]
[SourceTitle "playchess.com"]
[Source "ChessBase"]
[SourceQuality "1"]
[TimeControl "5400+30"]

1. d4 {[%emt 0:02:16]} d6 {[%emt 0:01:21]} 2. e4 {[%emt 0:00:50]} e5 {[%emt 0:00:25]} 3. Nf3 {[%emt 0:00:10]} exd4 {[%emt 0:00:41]} 4. Nxd4 {[%emt 0:00:06]} Nf6 {[%emt 0:00:28]} 5. Nc3 {[%emt 0:00:07]} Be7 {[%emt 0:00:18]} 6. Bf4 {[%emt 0:00:19]} O-O {[%emt 0:00:31]} 7. Qd2 {[%emt 0:00:07]} Nc6 {[%emt 0:00:40]} 8. O-O-O {[%emt 0:00:10]} Nxd4 {[%emt 0:00:29]} 9. Qxd4 {[%emt 0:00:07]} Nd7 {[%emt 0:00:24]} 10. Qd2 {[%emt 0:02:45]} Nb6 {[%emt 0:00:26]} 11. h4 {[%emt 0:02:36]} Be6 {[%emt 0:00:34]} 12. f3 {[%emt 0:02:59]} Qd7 {[%emt 0:00:54]} 13. g4 {[%emt 0:02:42]} Rad8 {[%emt 0:00:28]} 14. h5 {[%emt 0:15:17]} c6 {[%emt 0:02:53]} 15. g5 {[%emt 0:05:08]} d5 {[%emt 0:03:03]} 16. g6 {[%emt 0:01:52]} fxg6 {[%emt 0:01:22]} 17. hxg6 {[%emt 0:07:31]} hxg6 {[%emt 0:00:10]} 18. Qh2 {[%emt 0:04:00]} Rxf4 {[%emt 0:04:34]} 19. Qxf4 {[%emt 0:00:02]} d4 {[%emt 0:00:36]} 20. Qg3 {[%emt 0:12:35]} g5 {[%emt 0:06:05]} 21. Qh2 {[%emt 0:02:46]} Qe8 {[%emt 0:16:37]} 22. Qh7+ {[%emt 0:11:04]} Kf8 {[%emt 0:01:59]} 23. Ne2 {[%emt 0:04:14]} Bf6 {[%emt 0:01:16]} 24. Ng3 {[%emt 0:08:17]} Bg8 {[%emt 0:01:09]} 25. Qf5 {[%emt 0:00:06]} Qe5 {[%emt 0:00:50]} 26. Qxe5 {[%emt 0:04:23]} Bxe5 {[%emt 0:00:37]} 27. Nf5 {[%emt 0:00:01]} g6 {[%emt 0:02:30]} 28. Nh6 {[%emt 0:00:03]} Be6 {[%emt 0:01:40]} 29. Bh3 {[%emt 0:00:05]} Bc4 {[%emt 0:01:17]} 30. Kb1 {[%emt 0:04:47]} Kg7 {[%emt 0:00:43]} 31. Ng4 {[%emt 0:00:01]} Bf4 {[%emt 0:00:26]} 32. Bf1 {[%emt 0:00:10]} Be6 {[%emt 0:00:57]} 33. Nf2 {[%emt 0:00:08]} Be3 {[%emt 0:00:47]} 34. Nd3 {[%emt 0:00:02]} Bg8 {[%emt 0:02:05]} 35. Nc5 {[%emt 0:00:47]} Rf8 {[%emt 0:00:47]} 36. Rh3 {[%emt 0:01:44]} Re8 {[%emt 0:05:07]} 37. Nb3 {[%emt 0:04:58]} g4 {[%emt 0:02:54]} 38. fxg4 {[%emt 0:00:02]} Rxe4 {[%emt 0:00:10]} 39. Be2 {[%emt 0:00:22]} Nd5 {[%emt 0:00:29]} 40. Bf3 {[%emt 0:01:21]} Rf4 {[%emt 0:00:46]} 41. c3 {[%emt 0:01:45]} c5 {[%emt 0:02:09]} 42. Nxc5 {[%emt 0:00:08]} Nb6 {[%emt 0:07:12]} 43. cxd4 {[%emt 0:01:16]} Bxd4 {[%emt 0:00:57]} 44. Nd3 {[%emt 0:00:39]} Rf8 {[%emt 0:00:51]} 45. b3 {[%emt 0:00:45]} a5 {[%emt 0:01:46]} 46. Nc1 {[%emt 0:00:12]} Be5 {[%emt 0:00:44]} 47. Bxb7 {[%emt 0:00:21]} Rb8 {[%emt 0:00:36]} 48. Re3 {[%emt 0:01:04]} Bf6 {[%emt 0:00:17]} 49. Bc6 {[%emt 0:00:16]} Nc4 {[%emt 0:00:23]} 50. Rd7+ {[%emt 0:00:17]} Kf8 {[%emt 0:00:27]} 51. Re8+ {[%emt 0:00:42]} Rxe8 {[%emt 0:01:22]} 52. bxc4 {[%emt 0:00:01]} Bxc4 {[%emt 0:01:17]} 53. Nb3 {[%emt 0:00:14]} Re2 {[%emt 0:02:33]} 54. Rd2 {[%emt 0:00:02]} Re1+ {[%emt 0:01:32]} 55. Kc2 {[%emt 0:00:01]} Be6 {[%emt 0:00:27]} 56. Bd7 {[%emt 0:00:53]} Bxd7 {[%emt 0:00:43]} 57. Rxd7 {[%emt 0:00:01]} a4 {[%emt 0:00:19]} 58. Nc5 {[%emt 0:00:26]} a3 {[%emt 0:00:31]} 59. Rd1 {[%emt 0:00:57]} Rxd1 {[%emt 0:00:49]} 60. Kxd1 {[%emt 0:00:01]} Ke7 {[%emt 0:00:12]} 61. Kc2 {[%emt 0:00:04]} Bd4 {[%emt 0:02:06]} 62. Nb3 {[%emt 0:00:15]} Bb6 {[%emt 0:04:18]} 63. Kd3 {[%emt 0:00:16]} Kd6 {[%emt 0:00:33]} 64. Ke4 {[%emt 0:00:08]} Bf2 {[%emt 0:00:53]} 65. Kf4 {[%emt 0:00:32]} Ke6 {[%emt 0:01:07]} 66. Nd2 {[%emt 0:00:28]} Bc5 {[%emt 0:00:48]} 67. Ke4 {[%emt 0:01:07]} Be7 {[%emt 0:00:50]} 68. Nc4 {[%emt 0:00:38]} Bb4 {[%emt 0:01:02]} 69. Ne5 {[%emt 0:01:27]} Kf6 {[%emt 0:00:19]} 70. Nf3 {[%emt 0:00:01]} Bc3 {[%emt 0:00:37]} 71. g5+ {[%emt 0:00:19]} Ke6 {[%emt 0:00:44]} 72. Nh4 {[%emt 0:01:25]} Bd2 {[%emt 0:00:30]} 73. Nxg6 {[%emt 0:00:45]} Bxg5 {[%emt 0:00:11]} 74. Ne5 {[%emt 0:00:04]} Be7 {[%emt 0:00:10]} 75. Nc4 {[%emt 0:00:07]} Bf8 {[%emt 0:00:08]} 76. Kd4 {[%emt 0:00:14]} Bg7+ {[%emt 0:00:11]} 77. Kc5 {[%emt 0:00:07]} Bb2 {[%emt 0:00:09]} 78. Kb4 {[%emt 0:00:10]} Kd5 {[%emt 0:00:11]} 79. Nxa3 Bxa3+ {[%emt 0:00:07]} 80. Kxa3 {[%emt 0:00:37]} Ke5 {[%emt 0:21:01]} 1/2-1/2

[Event "RUDAR XXII-IM 2024"]
[Site "Pozarevac"]
[Date "2024.02.12"]
[Round "1.3"]
[White "Mesic, Ismet"]
[Black "Petrovic, Aleksa"]
[Result "0-1"]
[ECO "E52"]
[WhiteElo "2232"]
[BlackElo "2248"]
[Annotator "RC"]
[PlyCount "96"]
[EventDate "2024.02.12"]
[EventType "tourn"]
[EventCountry "SRB"]
[SourceTitle "playchess.com"]
[Source "ChessBase"]
[SourceQuality "1"]
[TimeControl "5400+30"]

1. d4 {[%emt 1:31:00]} Nf6 {[%emt 0:00:33]} 2. c4 {[%emt 0:00:00]} e6 {[%emt 0:00:03]} 3. Nc3 {[%emt 0:00:00]} Bb4 {[%emt 0:00:08]} 4. e3 {[%emt 0:00:00]} O-O {[%emt 0:02:11]} 5. Bd2 {[%emt 0:00:00]} b6 {[%emt 0:00:30]} 6. Nf3 {[%emt 0:00:00]} Bb7 {[%emt 0:01:18]} 7. Bd3 {[%emt 0:00:00]} d5 {[%emt 0:02:38]} 8. cxd5 {[%emt 0:00:00]} exd5 {[%emt 0:00:50]} 9. Rc1 {[%emt 0:00:00]} a6 {[%emt 0:01:24]} 10. O-O {[%emt 0:00:00]} Bd6 {[%emt 0:01:57]} 11. Ne5 {[%emt 0:00:00]} c5 {[%emt 0:02:04]} 12. f4 {[%emt 0:00:00]} Nc6 {[%emt 0:01:43]} 13. Ng4 {[%emt 0:00:00]} Nb4 {[%emt 0:15:15]} 14. Bb1 {[%emt 0:00:00]} cxd4 {[%emt 0:08:31]} 15. exd4 {[%emt 0:00:00]} Be7 {[%emt 0:08:01]} 16. Nxf6+ {[%emt 0:00:00]} Bxf6 {[%emt 0:00:17]} 17. Ne2 {[%emt 0:00:00]} Qd6 {[%emt 0:04:57]} 18. Qb3 {[%emt 0:00:00]} a5 {[%emt 0:02:32]} 19. a3 {[%emt 0:00:00]} Rfe8 {[%emt 0:04:56]} 20. Ng3 {[%emt 0:00:00]} Nc6 {[%emt 0:04:05]} 21. Nf5 {[%emt 0:00:00]} Qd8 {[%emt 0:09:19]} 22. Kh1 {[%emt 0:00:00]} Nxd4 {[%emt 0:05:28]} 23. Nxd4 {[%emt 0:00:00]} Bxd4 {[%emt 0:00:02]} 24. Qd3 {[%emt 0:00:00]} Re4 {[%emt 0:00:15]} 25. Qh3 {[%emt 0:00:00]} Bxb2 {[%emt 0:08:12]} 26. Rcd1 {[%emt 0:00:00]} Qe7 {[%emt 0:05:25]} 27. Bxe4 {[%emt 0:00:00]} dxe4 {[%emt 0:00:02]} 28. Bc1 {[%emt 0:00:00]} Bxc1 {[%emt 0:02:51]} 29. Rxc1 {[%emt 0:00:00]} e3 {[%emt 0:01:53]} 30. Rfe1 {[%emt 0:00:00]} Qxa3 {[%emt 0:04:12]} 31. Rb1 {[%emt 0:00:00]} Qa2 {[%emt 0:02:38]} 32. Rxb6 {[%emt 0:00:00]} Be4 {[%emt 0:00:55]} 33. Qg3 {[%emt 0:02:22]} h5 {[%emt 0:01:21]} 34. h4 {[%emt 0:05:14]} Re8 {[%emt 0:00:28]} 35. f5 {[%emt 0:01:55]} Qd2 {[%emt 0:00:30]} 36. Rg1 {[%emt 0:04:27]} Bxf5 {[%emt 0:00:16]} 37. Rb5 {[%emt 0:00:22]} Bg6 {[%emt 0:00:42]} 38. Kh2 {[%emt 0:01:28]} Re4 {[%emt 0:00:34]} 39. Re1 {[%emt 0:00:02]} Kh7 {[%emt 0:00:21]} 40. Rg1 {[%emt 0:00:57]} a4 {[%emt 0:00:27]} 41. Re5 {[%emt 0:00:51]} Rg4 {[%emt 0:00:36]} 42. Qxe3 {[%emt 0:00:14]} Rxh4+ {[%emt 0:00:14]} 43. Kg3 {[%emt 0:00:00]} Rg4+ {[%emt 0:00:07]} 44. Kh2 {[%emt 0:00:32]} Qd6 {[%emt 0:00:30]} 45. g3 {[%emt 0:00:43]} a3 {[%emt 0:00:47]} 46. Ra5 {[%emt 0:01:02]} Rh4+ {[%emt 0:00:17]} 47. Kg2 {[%emt 0:00:01]} Be4+ {[%emt 0:00:23]} 48. Kf2 {[%emt 0:00:01]} Rh2+ {[%emt 0:00:08]} 0-1

[Event "RUDAR XXII-IM 2024"]
[Site "Pozarevac"]
[Date "2024.02.12"]
[Round "1.4"]
[White "Potluri Saye Srreezza"]
[Black "Spasic, Petar"]
[Result "1-0"]
[ECO "B15"]
[WhiteElo "1983"]
[BlackElo "2343"]
[Annotator "RC"]
[PlyCount "77"]
[EventDate "2024.02.12"]
[EventType "tourn"]
[EventCountry "SRB"]
[SourceTitle "playchess.com"]
[Source "ChessBase"]
[SourceQuality "1"]
[TimeControl "5400+30"]

1. e4 {[%emt 0:00:03]} c6 {[%emt 0:05:20]} 2. Nf3 {[%emt 0:00:17]} d5 {[%emt 0:00:21]} 3. Nc3 {[%emt 0:00:06]} g6 {[%emt 0:00:12]} 4. d4 {[%emt 0:07:38]} Bg4 {[%emt 0:00:11]} 5. h3 {[%emt 0:05:55]} Bxf3 {[%emt 0:00:12]} 6. Qxf3 {[%emt 0:00:06]} e6 {[%emt 0:00:10]} 7. exd5 {[%emt 0:04:39]} cxd5 {[%emt 0:00:26]} 8. Bb5+ {[%emt 0:00:15]} Nc6 {[%emt 0:00:04]} 9. O-O {[%emt 0:00:53]} a6 {[%emt 0:02:33]} 10. Bxc6+ {[%emt 0:00:37]} bxc6 {[%emt 0:00:06]} 11. Be3 {[%emt 0:00:37]} Bg7 {[%emt 0:00:58]} 12. Na4 {[%emt 0:02:46]} Ne7 {[%emt 0:00:24]} 13. Nc5 {[%emt 0:01:56]} Nf5 {[%emt 0:01:05]} 14. c3 {[%emt 0:01:55]} O-O {[%emt 0:12:13]} 15. Bf4 {[%emt 0:03:40]} Ra7 {[%emt 0:02:56]} 16. Rfe1 {[%emt 0:01:46]} Re8 {[%emt 0:01:53]} 17. Qe2 {[%emt 0:01:37]} a5 {[%emt 0:02:38]} 18. Qc2 {[%emt 0:00:29]} Qb6 {[%emt 0:01:43]} 19. Na4 {[%emt 0:05:39]} Qd8 {[%emt 0:04:07]} 20. Nc5 {[%emt 0:00:27]} Bf8 {[%emt 0:00:58]} 21. Nd3 {[%emt 0:01:01]} f6 {[%emt 0:08:30]} 22. Re2 {[%emt 0:11:54]} Qb6 {[%emt 0:01:21]} 23. Rae1 {[%emt 0:06:57]} Ng7 {[%emt 0:05:35]} 24. Bh6 {[%emt 0:00:45]} Rae7 {[%emt 0:00:38]} 25. Bxg7 {[%emt 0:01:45]} Bxg7 {[%emt 0:00:19]} 26. Nc5 {[%emt 0:21:00]} e5 {[%emt 0:01:32]} 27. Qb3 {[%emt 0:01:25]} Qc7 {[%emt 0:01:02]} 28. c4 {[%emt 0:05:58]} exd4 {[%emt 0:09:12]} 29. cxd5 {[%emt 0:02:08]} Rxe2 {[%emt 0:00:44]} 30. d6+ {[%emt 0:00:17]} Qf7 {[%emt 0:00:05]} 31. Rxe2 {[%emt 0:00:09]} Rd8 {[%emt 0:14:28]} 32. Qxf7+ {[%emt 0:01:57]} Kxf7 {[%emt 0:00:06]} 33. Re7+ {[%emt 0:00:08]} Kg8 {[%emt 0:00:06]} 34. d7 {[%emt 0:01:45]} Kf8 {[%emt 0:01:24]} 35. Rxg7 {[%emt 0:00:10]} Kxg7 {[%emt 0:00:05]} 36. Ne6+ {[%emt 0:00:06]} Kf7 {[%emt 0:00:04]} 37. Nxd8+ {[%emt 0:00:06]} Kg7 {[%emt 0:00:02]} 38. Nxc6 {[%emt 0:00:11]} d3 {[%emt 0:00:09]} 39. d8=Q {[%emt 0:00:07]} 1-0

[Event "RUDAR XXII-IM 2024"]
[Site "Pozarevac"]
[Date "2024.02.12"]
[Round "2.1"]
[White "Ilincic, Zlatko"]
[Black "Bryakin, Mikhail"]
[Result "0-1"]
[ECO "D12"]
[WhiteElo "2291"]
[BlackElo "2494"]
[Annotator "TA"]
[PlyCount "112"]
[EventDate "2024.02.12"]
[EventType "tourn"]
[EventCountry "SRB"]
[SourceTitle "playchess.com"]
[Source "ChessBase"]
[SourceQuality "1"]
[TimeControl "5400+30"]

{[%evp 14,112,26,12,16,18,18,-8,27,28,41,25,18,23,25,18,53,12,16,16,28,14,29,17,25,20,48,11,29,0,44,66,61,67,161,16,13,14,16,18,15,0,0,0,0,0,0,0,0,0,0,0,0,0,0,0,0,0,0,0,0,0,0,-8,0,-12,0,0,0,-15,-18,-26,-14,-48,-14,-122,-121,-214,-219,-221,-227,-371,-365,-388,-345,-4133,-2635,-29970,-29971,-29973,-29972,-29980,-29981,-29981,-29982,-29983,-29983,-29983,-29984,-29981,-29979]} 1. d4 {[%emt 0:00:03]} d5 {[%emt 0:00:37]} 2. Nf3 {[%emt 0:00:18]} Nf6 {[%emt 0:00:25]} 3. e3 {[%emt 0:00:18]} Bf5 {[%emt 0:00:12]} 4. Bd3 {[%emt 0:00:15]} Bg6 {[%emt 0:00:15]} 5. O-O {[%emt 0:00:09]} e6 {[%emt 0:00:10]} 6. b3 {[%emt 0:00:25]} Nbd7 {[%emt 0:00:32]} 7. c4 {[%emt 0:00:22]} c6 {[%emt 0:00:15]} 8. Bb2 {[%emt 0:00:35]} Bd6 {[%emt 0:00:31]} 9. Nc3 {[%emt 0:00:42][%cal Bb1c3,Bc3e2,Be2f4][%mdl 32]} Ne4 {[%emt 0:00:51]} 10. Ne2 {[%emt 0:00:35]} (10. a4 {simplifies} a5 11. Qc2 Nxc3 12. Bxc3 Bxd3 13. Qxd3 Nf6 14. Nd2) 10... Qb8 {[%emt 0:03:57] The position is equal.} 11. g3 {[%emt 0:01:12]} (11. Qc2 {simplifies} Nef6 12. Bxg6 hxg6 13. g3) 11... Bh5 {[%emt 0:05:27]} 12. Kg2 {[%emt 0:02:18]} (12. Nh4 {simplifies} f5 13. f3 Nef6 14. Ng2) 12... O-O {[%emt 0:09:18]} 13. Nf4 {[%emt 0:09:10]} (13. Nd2 {simplifies} Bg6 14. Qc2 Nxd2 15. Qxd2 Nf6 16. Nc3) 13... Bxf3+ {[%emt 0:00:50]} 14. Kxf3 {[%emt 0:00:09]} e5 {[%emt 0:05:03]} 15. dxe5 {[%emt 0:03:59]} (15. cxd5 {feels hotter.} exf4 16. Bxe4 Nf6 17. dxc6 fxe3 18. Bf5) 15... Bxe5 {[%emt 0:00:33]} 16. Bxe5 {[%emt 1:18:00]} Qxe5 {[%emt 0:04:17]} 17. cxd5 {[%emt 0:00:00]} cxd5 {[%emt 0:03:13]} 18. Kg2 {[%emt 0:00:00]} Ndf6 {[%emt 0:00:49]} 19. Rc1 {[%emt 0:00:00]} Rad8 {[%emt 0:00:52]} 20. Rc2 {[%emt 0:00:00]} d4 {[%emt 0:02:58] ...dxe3 is the strong threat.} 21. Qa1 {[%emt 0:00:00]} Nc5 {[%emt 0:14:03] And now ...Nxd3 would win. A dynamic duo of knights.} 22. exd4 {[%emt 0:00:00]} Rxd4 {[%emt 0:00:14]} 23. Rc4 {[%emt 0:00:00]} Rfd8 {[%emt 0:01:11] [#]} (23... Rd5 $1 $14) 24. Re1 {[%emt 0:00:00]} (24. Rd1 $1 $18 {Strongly threatening Rxd4.} Nxd3 25. Rxd3 Qe4+ 26. f3 Qxd3 27. Nxd3 Rxd3 28. Qc1) 24... Qd6 $11 {[%emt 0:00:32]} 25. Rxd4 {[%emt 0:00:00]} Qxd4 {[%emt 0:00:11]} 26. Qxd4 {[%emt 0:00:00]} Rxd4 {[%emt 0:00:16]} 27. Bb1 {[%emt 0:00:00]} Kf8 {[%emt 0:01:20]} 28. Ne2 {[%emt 0:00:00]} Rd2 {[%emt 0:01:06]} 29. Nc3 {[%emt 0:00:00]} a5 {[%emt 0:01:19]} 30. Re2 {[%emt 0:00:00]} Rxe2 {[%emt 0:00:40]} 31. Nxe2 {[%emt 0:00:00][%mdl 4096] Endgame. KBN-KNN} Ke7 {[%emt 0:00:13]} 32. Nc3 {[%emt 0:00:00]} Kd6 {[%emt 0:00:24]} 33. Kf3 {[%emt 0:00:00]} g5 {[%emt 0:02:17]} 34. h4 {[%emt 0:00:00]} gxh4 {[%emt 0:02:32]} 35. gxh4 {[%emt 0:00:00]} Ke5 {[%emt 0:00:04]} 36. Kg3 {[%emt 0:00:00]} h6 {[%emt 0:03:15]} 37. Kf3 {[%emt 0:00:00]} Ne6 {[%emt 0:03:11]} 38. Nb5 {[%emt 0:00:00]} b6 {[%emt 0:02:54]} 39. Bd3 {[%emt 0:00:00]} Nf4 {[%emt 0:01:23]} 40. Bc4 {[%emt 0:00:00]} Ng6 {[%emt 0:00:40]} 41. Bxf7 {[%emt 0:00:00]} Nxh4+ {[%emt 0:00:13]} 42. Ke2 {[%emt 0:00:00]} Nf5 {[%emt 0:01:38]} 43. Nc3 {[%emt 0:00:00]} h5 {[%emt 0:03:39]} 44. Kd3 {[%emt 0:00:00]} (44. Kf3 $11) 44... h4 $17 {[%emt 0:04:41] White must now prevent ...h3.} 45. Ne2 {[%emt 0:00:00] [#]} (45. Ke2 $17 {was worth a try.}) 45... Nd6 $1 $19 {[%emt 0:01:16]} 46. Bg6 {[%emt 0:00:00]} Nd5 {[%emt 0:09:33]} 47. Bh5 {[%emt 0:00:00]} (47. Bh7 {was the only defense.}) 47... Ne4 {[%emt 0:03:50]} 48. Kc4 {[%emt 0:00:00]} Ndf6 {[%emt 0:00:38]} (48... Nxf2 $2 49. Bf3 $19) 49. Kb5 $2 {[%emt 0:00:00]} (49. Ng1 Nd6+ (49... Nxh5 $2 50. Nf3+ Ke6 51. Nxh4 $19) 50. Kd3 Nxh5 51. Nf3+ Kd5 52. Nxh4) 49... Nxh5 {[%emt 0:01:27]} 50. Kxb6 {[%emt 0:00:00]} Nf4 {[%emt 0:02:57] Black mates.} 51. Ng1 {[%emt 0:00:00]} Nd2 {[%emt 0:00:51]} ({Weaker is} 51... Nxf2 52. Nf3+ Kf5 53. Nxh4+ Kg4 54. Kxa5 $11) 52. Kxa5 {[%emt 0:00:00]} Ke4 {[%emt 0:00:07]} 53. b4 {[%emt 0:00:00]} Nf3 {[%emt 0:00:50]} 54. b5 {[%emt 0:00:00]} Nxg1 {[%emt 0:00:23]} 55. b6 {[%emt 0:00:00]} Ne6 {[%emt 0:02:04]} 56. b7 {[%emt 0:00:00]} Nd8 {[%emt 0:00:09] Weighted Error Value: White=0.40/Black=0.10 (very precise) .  Mistake:       	White=5     	Black=1      Inaccurate:     	White=6     	Black=5      OK:         	White=15    	Black=12     Best:        	White=2     	Black=2      Strong:       	---       	Black=1} 0-1

[Event "RUDAR XXII-IM 2024"]
[Site "Pozarevac"]
[Date "2024.02.12"]
[Round "2.2"]
[White "Spasic, Petar"]
[Black "Ninov, Nikolai"]
[Result "1/2-1/2"]
[ECO "A36"]
[WhiteElo "2343"]
[BlackElo "2413"]
[Annotator "TA"]
[PlyCount "28"]
[EventDate "2024.02.12"]
[EventType "tourn"]
[EventCountry "SRB"]
[SourceTitle "playchess.com"]
[Source "ChessBase"]
[SourceQuality "1"]
[TimeControl "5400+30"]

{[%evp 23,28,0,0,0,0,0,10]} 1. Nf3 {[%emt 0:00:10]} c5 {[%emt 0:00:33]} 2. g3 {[%emt 0:00:19]} g6 {[%emt 0:01:59]} 3. Bg2 {[%emt 0:00:14]} Bg7 {[%emt 0:00:05]} 4. O-O {[%emt 0:00:08]} Nc6 {[%emt 0:03:07]} 5. c4 {[%emt 0:00:34]} e6 {[%emt 0:02:43]} 6. Nc3 {[%emt 0:00:24]} Nge7 {[%emt 0:00:11]} 7. e3 {[%emt 0:15:51]} O-O {[%emt 0:05:46]} 8. d4 {[%emt 0:01:51]} cxd4 {[%emt 0:00:44]} 9. Nxd4 {[%emt 0:01:17]} Nxd4 {[%emt 0:00:22]} 10. exd4 {[%emt 0:00:06]} d5 {[%emt 0:00:18]} 11. cxd5 {[%emt 0:00:39]} Nxd5 {[%emt 0:00:14]} 12. Nxd5 {[%emt 0:00:27]} exd5 {[%emt 0:00:12] The position is equal.} 13. Be3 {[%emt 0:00:21]} Be6 {[%emt 0:03:34]} 14. Qb3 {[%emt 0:05:39]} Qb6 {[%emt 0:09:47] An uneventful encounter.   OK:         	---       	Black=2} 1/2-1/2

[Event "RUDAR XXII-IM 2024"]
[Site "Pozarevac"]
[Date "2024.02.12"]
[Round "2.3"]
[White "Petrovic, Aleksa"]
[Black "Potluri Saye Srreezza"]
[Result "1/2-1/2"]
[ECO "D34"]
[WhiteElo "2248"]
[BlackElo "1983"]
[Annotator "RC"]
[PlyCount "47"]
[EventDate "2024.02.12"]
[EventType "tourn"]
[EventCountry "SRB"]
[SourceTitle "playchess.com"]
[Source "ChessBase"]
[SourceQuality "1"]
[TimeControl "5400+30"]

1. Nf3 {[%emt 0:17:35]} d5 {[%emt 0:01:37]} 2. g3 {[%emt 0:00:16]} c5 {[%emt 0:00:11]} 3. Bg2 {[%emt 0:00:05]} Nc6 {[%emt 0:00:04]} 4. d4 {[%emt 0:00:39]} e6 {[%emt 0:00:14]} 5. O-O {[%emt 0:00:42]} Nf6 {[%emt 0:00:05]} 6. c4 {[%emt 0:01:56]} Be7 {[%emt 0:00:08]} 7. cxd5 {[%emt 0:02:15]} exd5 {[%emt 0:00:07]} 8. Nc3 {[%emt 0:00:03]} O-O {[%emt 0:00:06]} 9. Bg5 {[%emt 0:02:23]} c4 {[%emt 0:00:12]} 10. Ne5 {[%emt 0:01:08]} Be6 {[%emt 0:00:08]} 11. e3 {[%emt 0:00:17]} h6 {[%emt 0:00:38]} 12. Bxf6 {[%emt 0:00:14]} Bxf6 {[%emt 0:00:06]} 13. f4 {[%emt 0:00:07]} Ne7 {[%emt 0:00:09]} 14. Ng4 {[%emt 0:07:41]} Bxg4 {[%emt 0:20:13]} 15. Qxg4 {[%emt 0:00:17]} Qd6 {[%emt 0:05:16]} 16. Rad1 {[%emt 0:02:19]} Rab8 {[%emt 0:06:37]} 17. Kh1 {[%emt 0:03:27]} Rfd8 {[%emt 0:11:48]} 18. e4 {[%emt 0:09:24]} dxe4 {[%emt 0:00:20]} 19. Nxe4 {[%emt 0:00:18]} Qb6 {[%emt 0:11:41]} 20. Nxf6+ {[%emt 0:11:57]} Qxf6 {[%emt 0:00:16]} 21. Qe2 {[%emt 0:00:16]} Nd5 {[%emt 0:02:17]} 22. Bxd5 {[%emt 0:02:28]} Rxd5 {[%emt 0:00:09]} 23. Qxc4 {[%emt 0:00:09]} Rbd8 {[%emt 0:00:10]} 24. Qb3 {[%emt 0:02:31]} 1/2-1/2